fUST/lending_fUST_20260115
["ID","MTS","AMOUNT","RATE_DAILY","PERIOD"]
[401970690,1768428645205,-153.0,0.00026826,2]
[401970691,1768428645217,-550.0,0.00026849,2]
[401970692,1768428645227,-5000.3969127,0.00027,2]
[401970693,1768428645238,-1041.66666667,0.00027,7]
[401970694,1768428645248,-186.0,0.00027,7]
[401970695,1768428645259,-1677.89288592,0.00027012,3]
[401970696,1768428645269,-271.0,0.00027014,14]
[401970697,1768428645280,-813.50644317,0.00027033,18]
[401970698,1768428645290,-2426.8707846,0.00027038,2]
[401970699,1768428645300,-63866.0697921,0.00027038,2]
[401970700,1768428645311,-3534.4936451,0.00027038,2]
[401970701,1768428645321,-10603.4809353,0.00027038,2]
[401970702,1768428645331,-2953.11393833,0.00027069,2]
[401970703,1768428645342,-248.76,0.000271,7]
[401970704,1768428645352,-218.33,0.000271,7]
[401970705,1768428645365,-160.0,0.00027109,3]
[401970706,1768428645376,-800.0,0.00027132,2]
[401970707,1768428645386,-3100.8635806,0.00027279,3]
[401970708,1768428645397,-151.0,0.000273,15]
[401970709,1768428645407,-3915.7,0.000273,14]
[401970710,1768428645418,-250.0,0.00027367,5]
[401970711,1768428645430,-250.0,0.00027367,5]
[401970712,1768428645442,-250.0,0.00027367,5]
[401970713,1768428645453,-151.0,0.00027367,5]
[401970714,1768428645465,-250.0,0.00027367,5]
[401970715,1768428645476,-250.0,0.00027367,5]
[401970716,1768428645487,-283.61044671,0.00027367,5]
[401970717,1768428645498,-250.0,0.00027367,5]
[401970718,1768428645509,-250.0,0.00027367,5]
[401970719,1768428645521,-151.0,0.00027367,5]
[401970721,1768428645533,-255.9181721,0.00027367,5]
[401970722,1768428645544,-250.0,0.00027367,5]
[401970723,1768428645555,-250.0,0.00027367,5]
[401970724,1768428645566,-294.03317915,0.00027367,5]
[401970725,1768428645577,-151.0,0.00027367,5]
[401970726,1768428645588,-250.0,0.00027367,5]
[401970727,1768428645599,-250.0,0.00027367,5]
[401970728,1768428645609,-151.0,0.00027367,5]
[401970729,1768428645620,-250.0,0.00027367,5]
[401970730,1768428645630,-250.0,0.00027367,5]
[401970731,1768428645641,-151.0,0.00027367,5]
[401970732,1768428645652,-271.32439801,0.00027367,5]
[401970734,1768428645662,-250.0,0.00027367,5]
[401970736,1768428645673,-151.0,0.00027367,5]
[401970738,1768428645684,-250.0,0.00027367,5]
[401970739,1768428645695,-151.0,0.00027367,5]
[401970741,1768428645707,-250.0,0.00027367,5]
[401970742,1768428645718,-151.0,0.00027367,5]
[401970743,1768428645728,-151.0,0.00027367,5]
[401970744,1768428645739,-250.0,0.00027367,5]
[401970745,1768428645750,-151.0,0.00027367,5]
[401970746,1768428645761,-151.0,0.00027367,5]
[401970747,1768428645771,-250.0,0.00027367,5]
[401970748,1768428645782,-151.0,0.00027367,5]
[401970749,1768428645792,-151.0,0.00027367,5]
[401970750,1768428645807,-250.0,0.00027367,5]
[401970751,1768428645818,-250.0,0.00027367,5]
[401970752,1768428645828,-151.0,0.00027367,5]
[401970753,1768428645839,-151.0,0.00027367,5]
[401970754,1768428645849,-160.0,0.00027367,5]
[401970755,1768428645859,-250.0,0.00027367,5]
[401970756,1768428645870,-250.0,0.00027367,5]
[401970757,1768428645880,-151.0,0.00027367,5]
[401970758,1768428645891,-151.0,0.00027367,5]
[401970759,1768428645902,-160.0,0.00027367,5]
[401970760,1768428645912,-250.0,0.00027367,5]
[401970761,1768428645922,-250.0,0.00027367,5]
[401970762,1768428645933,-151.0,0.00027367,5]
[401970763,1768428645944,-164.08273023,0.00027367,5]
[401970764,1768428645955,-151.0,0.00027367,5]
[401970765,1768428645967,-250.0,0.00027367,5]
[401970766,1768428645978,-461.67526834,0.00027367,5]
[401970767,1768428645989,-250.0,0.00027367,5]
[401970768,1768428645999,-151.0,0.00027367,5]
[401970769,1768428646010,-245.0,0.00027367,5]
[401970770,1768428646019,-250.0,0.00027367,5]
[401970771,1768428646030,-478.75725327,0.00027367,5]
[401970772,1768428646042,-250.0,0.00027367,5]
[401970773,1768428646054,-151.0,0.00027367,5]
[401970774,1768428646064,-250.0,0.00027367,5]
[401970775,1768428646074,-496.47127164,0.00027367,5]
[401970776,1768428646084,-250.0,0.00027367,5]
[401970777,1768428646094,-151.0,0.00027367,5]
[401970778,1768428646104,-250.0,0.00027367,5]
[401970779,1768428646114,-514.84070869,0.00027367,5]
[401970780,1768428646124,-250.0,0.00027367,5]
[401970781,1768428646134,-163.79209166,0.00027367,5]
[401970782,1768428646144,-533.88981491,0.00027367,5]
[401970783,1768428646155,-250.0,0.00027367,5]
[401970785,1768428646165,-250.0,0.00027367,5]
[401970786,1768428646176,-553.64373807,0.00027367,5]
[401970787,1768428646186,-273.43146715,0.00027367,5]
[401970788,1768428646197,-574.12855637,0.00027367,5]
[401970789,1768428646208,-595.37131296,0.00027367,5]
[401970790,1768428646218,-617.40005154,0.00027367,5]
[401970791,1768428646229,-640.24385345,0.00027367,5]
[401970792,1768428646239,-663.93287602,0.00027367,5]
[401970793,1768428646249,-688.49839244,0.00027367,5]
[401970794,1768428646260,-713.97283296,0.00027367,5]
[401970795,1768428646273,-500.0,0.00027367,5]
[401970796,1768428646285,-168.3888056,0.00027367,5]
[401970797,1768428646296,-844.69282827,0.00027367,5]
[401970798,1768428646306,-500.0,0.00027367,5]
[401970799,1768428646316,-151.0,0.00027367,5]
[401970800,1768428646326,-174.61919141,0.00027367,5]
[401970801,1768428646337,-2230.315306,0.00027367,5]
[401970802,1768428646348,-500.0,0.00027367,5]
[401970803,1768428646362,-181.08010149,0.00027367,5]
[401970804,1768428646372,-2312.83697232,0.00027367,5]
[401970805,1768428646382,-500.0,0.00027367,5]
[401970806,1768428646392,-187.78006525,0.00027367,5]
[401970807,1768428646404,-500.0,0.00027367,5]
[401970808,1768428646414,-2398.4119403,0.00027367,5]
[401970809,1768428646425,-194.72792766,0.00027367,5]
[401970810,1768428646435,-500.0,0.00027367,5]
[401970811,1768428646446,-2487.15318209,0.00027367,5]
[401970812,1768428646457,-201.93286099,0.00027367,5]
[401970813,1768428646468,-2579.17784983,0.00027367,5]
[401970814,1768428646479,-500.0,0.00027367,5]
[401970815,1768428646489,-209.40437684,0.00027367,5]
[401970816,1768428646500,-2674.60743027,0.00027367,5]
[401970817,1768428646511,-500.0,0.00027367,5]
[401970818,1768428646522,-217.15233878,0.00027367,5]
[401970819,1768428646533,-2773.56790519,0.00027367,5]
[401970820,1768428646543,-500.0,0.00027367,5]
[401970821,1768428646554,-225.18697532,0.00027367,5]
[401970822,1768428646564,-2876.18991768,0.00027367,5]
[401970823,1768428646575,-297.43886801,0.00027367,5]
[401970824,1768428646586,-500.0,0.00027367,5]
[401970825,1768428646597,-233.51889341,0.00027367,5]
[401970826,1768428646607,-168.3888056,0.00027367,5]
[401970827,1768428646617,-2982.60894464,0.00027367,5]
[401970828,1768428646627,-500.0,0.00027367,5]
[401970829,1768428646638,-242.15909246,0.00027367,5]
[401970830,1768428646649,-174.61919141,0.00027367,5]
[401970831,1768428646659,-3092.96547559,0.00027367,5]
[401970832,1768428646670,-500.0,0.00027367,5]
[401970833,1768428646681,-251.11897888,0.00027367,5]
[401970834,1768428646693,-181.08010149,0.00027367,5]
[401970835,1768428646703,-3207.40519818,0.00027367,5]
[401970836,1768428646713,-500.0,0.00027367,5]
[401970837,1768428646723,-260.4103811,0.00027367,5]
[401970838,1768428646734,-187.78006525,0.00027367,5]
[401970839,1768428646744,-3326.07919052,0.00027367,5]
[401970840,1768428646754,-500.0,0.00027367,5]
[401970841,1768428646763,-270.0455652,0.00027367,5]
[401970842,1768428646773,-194.72792766,0.00027367,5]
[401970843,1768428646784,-500.0,0.00027367,5]
[401970844,1768428646794,-280.03725112,0.00027367,5]
[401970845,1768428646804,-201.93286099,0.00027367,5]
[401970846,1768428646815,-500.0,0.00027367,5]
[401970847,1768428646826,-290.39862941,0.00027367,5]
[401970848,1768428646837,-209.40437684,0.00027367,5]
[401970849,1768428646847,-500.0,0.00027367,5]
[401970850,1768428646857,-301.1433787,0.00027367,5]
[401970852,1768428646868,-217.15233878,0.00027367,5]
[401970854,1768428646878,-225.18697532,0.00027367,5]
[401970855,1768428646889,-233.51889341,0.00027367,5]
[401970856,1768428646901,-242.15909246,0.00027367,5]
[401970857,1768428646913,-265.87708981,0.00027367,5]
[401970858,1768428646925,-5000.0,0.00027368,2]
[401970859,1768428646937,-3000.0,0.00027396,14]
[401970860,1768428646947,-87888.98261052,0.00027397,7]
[401970861,1768428646960,-100000.0,0.00027397,7]
[401970862,1768428646970,-152.430447,0.00027397,7]
[401970863,1768428646981,-222.949825,0.00027397,7]
[401970864,1768428646991,-224.069012,0.00027397,7]
[401970865,1768428647001,-224.069012,0.00027397,7]
[401970866,1768428647012,-224.069012,0.00027397,7]
[401970867,1768428647022,-224.069012,0.00027397,7]
[401970868,1768428647032,-151.0,0.00027397,7]
[401970869,1768428647043,-151.0,0.00027397,7]
[401970870,1768428647053,-253.260764,0.00027397,7]
[401970871,1768428647063,-253.260764,0.00027397,7]
[401970872,1768428647073,-253.260764,0.00027397,7]
[401970873,1768428647083,-253.260764,0.00027397,7]
[401970874,1768428647092,-153.99893,0.00027397,7]
[401970875,1768428647102,-151.0,0.00027397,7]
[401970876,1768428647112,-151.0,0.00027397,7]
[401970877,1768428647122,-182.075768,0.00027397,7]
[401970878,1768428647132,-241.624694,0.00027397,7]
[401970879,1768428647142,-241.624694,0.00027397,7]
[401970880,1768428647151,-241.624694,0.00027397,7]
[401970881,1768428647161,-241.624694,0.00027397,7]
[401970882,1768428647172,-191.596972,0.00027397,7]
[401970883,1768428647181,-191.596972,0.00027397,7]
[401970884,1768428647192,-191.596972,0.00027397,7]
[401970885,1768428647202,-191.596972,0.00027397,7]
[401970886,1768428647215,-151.0,0.00027397,7]
[401970887,1768428647226,-910.867725,0.00027397,7]
[401970888,1768428647236,-910.867725,0.00027397,7]
[401970889,1768428647246,-910.867725,0.00027397,7]
[401970890,1768428647256,-910.867725,0.00027397,7]
[401970891,1768428647266,-151.0,0.00027397,7]
[401970892,1768428647276,-151.0,0.00027397,7]
[401970893,1768428647287,-151.0,0.00027397,7]
[401970894,1768428647301,-206.655593,0.00027397,7]
[401970895,1768428647311,-206.655593,0.00027397,7]
[401970896,1768428647321,-206.655593,0.00027397,7]
[401970897,1768428647332,-206.655593,0.00027397,7]
[401970898,1768428647343,-151.0,0.00027397,7]
[401970899,1768428647355,-151.0,0.00027397,7]
[401970900,1768428647366,-151.0,0.00027397,7]
[401970901,1768428647375,-282.150442,0.00027397,7]
[401970902,1768428647385,-282.150442,0.00027397,7]
[401970903,1768428647396,-282.150442,0.00027397,7]
[401970904,1768428647406,-282.150442,0.00027397,7]
[401970905,1768428647416,-151.0,0.00027397,7]
[401970906,1768428647427,-151.0,0.00027397,7]
[401970907,1768428647437,-151.0,0.00027397,7]
[401970908,1768428647447,-151.0,0.00027397,7]
[401970909,1768428647458,-151.0,0.00027397,7]
[401970910,1768428647468,-158.985841,0.00027397,7]
[401970911,1768428647480,-151.0,0.00027397,7]
[401970912,1768428647492,-151.0,0.00027397,7]
[401970913,1768428647503,-151.0,0.00027397,7]
[401970914,1768428647516,-251.333704,0.00027397,7]
[401970915,1768428647528,-301.20996102,0.00027397,3]
[401970916,1768428647540,-650.0,0.00027397,5]
[401970917,1768428647550,-310.0,0.00027397,2]
[401970918,1768428647560,-310.0,0.00027397,2]
[401970919,1768428647570,-310.0,0.00027397,2]
[401970920,1768428647580,-310.0,0.00027397,2]
[401970921,1768428647590,-310.0,0.00027397,2]
[401970922,1768428647601,-310.0,0.00027397,2]
[401970923,1768428647610,-310.0,0.00027397,2]
[401970924,1768428647620,-310.0,0.00027397,2]
[401970925,1768428647629,-310.0,0.00027397,2]
[401970926,1768428647639,-310.0,0.00027397,2]
[401970927,1768428647649,-310.0,0.00027397,2]
[401970928,1768428647659,-310.0,0.00027397,2]
[401970929,1768428647668,-310.0,0.00027397,2]
[401970930,1768428647679,-310.0,0.00027397,2]
[401970931,1768428647689,-310.0,0.00027397,2]
[401970932,1768428647699,-310.0,0.00027397,2]
[401970933,1768428647710,-310.0,0.00027397,2]
[401970934,1768428647720,-310.0,0.00027397,2]
[401970935,1768428647733,-310.0,0.00027397,2]
[401970936,1768428647743,-310.0,0.00027397,2]
[401970937,1768428647753,-310.0,0.00027397,2]
[401970938,1768428647763,-310.0,0.00027397,2]
[401970939,1768428647773,-310.0,0.00027397,2]
[401970940,1768428647783,-310.0,0.00027397,2]
[401970941,1768428647793,-310.0,0.00027397,2]
[401970942,1768428647803,-310.0,0.00027397,2]
[401970943,1768428647812,-310.0,0.00027397,2]
[401970944,1768428647823,-310.0,0.00027397,2]
[401970945,1768428647832,-310.0,0.00027397,2]
[401970946,1768428647842,-310.0,0.00027397,2]
[401970947,1768428647852,-310.0,0.00027397,2]
[401970948,1768428647863,-310.0,0.00027397,2]
[401970949,1768428647873,-310.0,0.00027397,2]
[401970950,1768428647883,-310.0,0.00027397,2]
[401970951,1768428647893,-310.0,0.00027397,2]
[401970952,1768428647904,-310.0,0.00027397,2]
[401970953,1768428647914,-300.0,0.00027397,2]
[401970954,1768428647926,-300.0,0.00027397,2]
[401970955,1768428647936,-300.0,0.00027397,2]
[401970956,1768428647947,-300.0,0.00027397,2]
[401970957,1768428647957,-390.771557,0.00027397,3]
[401970958,1768428647967,-390.771557,0.00027397,3]
[401970959,1768428647977,-390.771557,0.00027397,3]
[401970960,1768428647988,-390.771557,0.00027397,3]
[401970961,1768428647999,-500.0,0.00027397,15]
[401970962,1768428648011,-157.45506808,0.00027397,5]
[401970963,1768428648172,-500.0,0.00027397,5]
[401970964,1768428648182,-515.68473116,0.00027397,5]
[401970965,1768428648192,-155.31,0.000274,2]
[401970966,1768428648201,-155.81,0.000274,2]
[401970967,1768428648211,-29614.9,0.000274,2]
[401970968,1768428648221,-714.6,0.00027404,5]
[401970969,1768428648231,-1524.22564047,0.000275,120]
[401970970,1768428648241,-32354.03148685,0.000275,2]
[401970971,1768428648251,-3399.0,0.0002752,2]
[401970972,1768428648260,-10000.0,0.00027548,2]
[401970973,1768428648270,-813.50644317,0.00027555,19]
[401970974,1768428648279,-2322.78,0.000276,7]
[401970975,1768428648288,-1604.0,0.00027618,10]
[401970976,1768428648298,-531.0,0.00027618,10]
[401970977,1768428648308,-711.0,0.00027618,10]
[401970978,1768428648318,-151.0,0.00027648,7]
[401970979,1768428648327,-151.0,0.00027648,7]
[401970980,1768428648337,-151.0,0.00027648,7]
[401970981,1768428648347,-151.0,0.00027648,7]
[401970982,1768428648359,-151.0,0.00027648,7]
[401970983,1768428648369,-160.0,0.00027648,8]
[401970984,1768428648378,-4332.57,0.00027671,4]
[401970985,1768428648387,-186.0,0.00027671,14]
[401970986,1768428648398,-500.0,0.00027671,15]
[401970987,1768428648408,-11357.60810118,0.000277,3]
[401970988,1768428648418,-1000.0,0.00027768,30]
[401970989,1768428648429,-1000.0,0.00027768,30]
[401970990,1768428648439,-504.68554132,0.0002777,10]
[401970991,1768428648450,-1510.0,0.00027787,22]
[401970992,1768428648461,-151.0,0.000278,7]
[401970993,1768428648472,-151.0,0.000278,7]
[401970994,1768428648482,-643.609469,0.000278,7]
[401970995,1768428648491,-643.609469,0.000278,7]
[401970996,1768428648501,-643.609469,0.000278,7]
[401970997,1768428648511,-643.609469,0.000278,7]
[401970998,1768428648523,-800.0,0.00027831,2]
[401970999,1768428648535,-2982.92068607,0.00027836,3]
[401971000,1768428648546,-500.0,0.00027844,10]
[401971001,1768428648557,-599.99999956,0.00027858,2]
[401971002,1768428648566,-500.0,0.00027945,15]
[401971003,1768428648575,-1000.0,0.00027945,5]
[401971004,1768428648584,-250.0,0.00027945,5]
[401971005,1768428648593,-250.0,0.00027945,5]
[401971006,1768428648603,-750.0,0.00027945,5]
[401971007,1768428648612,-57865.27017313,0.00027998,2]
[401971008,1768428648773,-7889.42051395,0.00027998,2]
[401971009,1768428648819,-328.57022792,0.00027998,2]
[401971010,1768428648830,-2846.86269284,0.00027998,2]
[401971011,1768428649023,-300.3117252,0.00024657,10]
[401971012,1768428649045,-302.0,0.00024657,10]
[401971013,1768428649056,-1180.65070467,0.00024657,10]
[401971014,1768429202523,155.56,5e-05,2]
[401971015,1768429356800,214.0,0.00025398,120]
[401971016,1768429358317,214.0,0.00026668,120]
[401971017,1768429501588,500.0,0.00026998,120]
[401971018,1768429502360,500.0,0.00026998,120]
[401971019,1768429503165,500.0,0.00026998,120]
[401971020,1768429503918,500.0,0.00026998,120]
[401971021,1768429504995,500.0,0.00026998,120]
[401971022,1768429506119,500.0,0.00026998,120]
[401971023,1768429506872,500.0,0.00026998,120]
[401971024,1768429507634,500.0,0.00026998,120]
[401971025,1768429508502,500.0,0.00026998,120]
[401971026,1768429509277,500.0,0.00026998,120]
[401971027,1768429510026,500.0,0.00026998,120]
[401971028,1768429576649,500.0,0.00026998,120]
[401971029,1768429577382,500.0,0.00026998,120]
[401971030,1768429578157,500.0,0.00026998,120]
[401971031,1768429578941,500.0,0.00026998,120]
[401971032,1768429579693,500.0,0.00026998,120]
[401971034,1768429647492,500.0,0.00026998,120]
[401971035,1768429648277,500.0,0.00026998,120]
[401971036,1768429649025,500.0,0.00026998,120]
[401971037,1768429649779,500.0,0.00026998,120]
[401971038,1768429651007,500.0,0.00026998,120]
[401971039,1768429651793,500.0,0.00026998,120]
[401971044,1768429719112,500.0,0.00026998,120]
[401971045,1768429719855,500.0,0.00026998,120]
[401971046,1768429721684,500.0,0.00026998,120]
[401971047,1768429788595,500.0,0.00026998,120]
[401971048,1768429789417,500.0,0.00026998,120]
[401971049,1768429790155,500.0,0.00026998,120]
[401971050,1768429791143,500.0,0.00026998,120]
[401971051,1768429791694,500.0,0.00026998,120]
[401971052,1768429792463,500.0,0.00026998,120]
[401971111,1768429831874,-417.16503418,0.00012171,2]
[401971114,1768429831885,-294.32464301,0.00012171,2]
[401971116,1768429831896,-287.51032281,0.00012171,2]
[401971118,1768429831905,-592.0,0.00012171,2]
[401971120,1768429831914,-300.0,0.00013071,2]
[401971122,1768429831923,-5546.68967734,0.00013072,2]
[401971124,1768429831933,-1078.08916142,0.00013072,2]
[401971126,1768429831944,-292.295,0.00013072,2]
[401971186,1768429837786,-661.31872797,0.00013071,2]
[401971187,1768429837798,-10253.63487603,0.00013072,2]
[401971188,1768429837809,-1418.45401946,0.00013072,2]
[401971189,1768429837826,-981410.83726575,0.00013072,2]
[401971190,1768429837835,-31884.98533904,0.00013166,2]
[401971191,1768429837844,-500.0,0.00013166,2]
[401971192,1768429837854,-608.07934395,0.00013166,2]
[401971193,1768429837863,-500.0,0.00013166,2]
[401971194,1768429837872,-500.0,0.00013166,2]
[401971195,1768429837881,-500.0,0.00013166,2]
[401971196,1768429837891,-500.0,0.00013166,2]
[401971197,1768429837901,-500.0,0.00013166,2]
[401971198,1768429837910,-500.0,0.00013166,2]
[401971199,1768429837920,-500.0,0.00013166,2]
[401971200,1768429837931,-308.28066189,0.00013167,2]
[401971201,1768429837940,-4502.43566158,0.00013173,2]
[401971202,1768429837948,-506.9688385,0.00013273,2]
[401971203,1768429837956,-500.0,0.00013273,2]
[401971204,1768429837964,-500.0,0.00013273,2]
[401971205,1768429837973,-500.0,0.00013273,2]
[401971206,1768429837980,-500.0,0.00013273,2]
[401971207,1768429837989,-500.0,0.00013273,2]
[401971208,1768429837998,-500.0,0.00013273,2]
[401971209,1768429838007,-500.0,0.00013273,2]
[401971210,1768429838016,-500.0,0.00013273,2]
[401971211,1768429838025,-500.0,0.00013273,2]
[401971212,1768429838034,-500.0,0.00013273,2]
[401971213,1768429838043,-500.0,0.00013273,2]
[401971214,1768429838052,-300.0,0.00013534,2]
[401971215,1768429838061,-300.0,0.00013534,2]
[401971216,1768429838070,-300.0,0.00013534,2]
[401971217,1768429838079,-300.0,0.00013534,2]
[401971218,1768429838088,-300.0,0.00013534,2]
[401971219,1768429838097,-300.0,0.00013534,2]
[401971220,1768429838107,-300.0,0.00013534,2]
[401971221,1768429838117,-300.0,0.00013534,2]
[401971222,1768429838126,-300.0,0.00013534,2]
[401971223,1768429838135,-300.0,0.00013534,2]
[401971224,1768429838143,-300.0,0.00013534,2]
[401971225,1768429838152,-300.0,0.00013534,2]
[401971226,1768429838162,-300.0,0.00013534,2]
[401971227,1768429838171,-300.0,0.00013534,2]
[401971228,1768429838180,-300.0,0.00013534,2]
[401971229,1768429838189,-500.0,0.00013698,2]
[401971230,1768429838198,-500.0,0.00013698,2]
[401971231,1768429838207,-500.0,0.00013698,2]
[401971232,1768429838216,-500.0,0.00013698,2]
[401971233,1768429838225,-500.0,0.00013698,2]
[401971234,1768429838234,-294.46262824,0.00013698,2]
[401971235,1768429838243,-2872.691767,0.00013699,2]
[401971236,1768429838252,-563.27896724,0.00013699,2]
[401971237,1768429838261,-500.0,0.00013699,2]
[401971238,1768429838269,-559.4878042,0.00013699,2]
[401971239,1768429838278,-500.0,0.00013699,2]
[401971240,1768429838287,-500.0,0.00013699,2]
[401971241,1768429838297,-500.0,0.00013699,2]
[401971242,1768429838306,-500.0,0.00013699,2]
[401971243,1768429838315,-500.0,0.00013699,2]
[401971244,1768429838324,-500.0,0.00013699,2]
[401971245,1768429838333,-600.0,0.00013804,2]
[401971246,1768429838342,-692.29139729,0.00013821,2]
[401971247,1768429838351,-1000.0,0.00013821,2]
[401971248,1768429838360,-671.14126243,0.00013821,2]
[401971249,1768429838369,-413.29712103,0.00013821,2]
[401971250,1768429838378,-1000.0,0.00013821,2]
[401971251,1768429838386,-1000.0,0.00013821,2]
[401971252,1768429838395,-1000.0,0.00013821,2]
[401971253,1768429838403,-1000.0,0.00013821,2]
[401971254,1768429838413,-1000.0,0.00013821,2]
[401971255,1768429838422,-1000.0,0.00013821,2]
[401971256,1768429838431,-1000.0,0.00013821,2]
[401971257,1768429838440,-222.25741451,0.00014241,2]
[401971258,1768429838450,-1000.0,0.00014247,2]
[401971259,1768429838459,-711.66599686,0.00014247,2]
[401971260,1768429838468,-1000.0,0.00014247,2]
[401971261,1768429838477,-1000.0,0.00014247,2]
[401971262,1768429838486,-1000.0,0.00014247,2]
[401971263,1768429838495,-1000.0,0.00014247,2]
[401971264,1768429838505,-1000.0,0.00014247,2]
[401971265,1768429838514,-100000.0,0.00014298,2]
[401971266,1768429838523,-420.0,0.00014333,2]
[401971267,1768429838532,-1500.0,0.00014368,2]
[401971268,1768429838541,-1500.0,0.00014368,2]
[401971269,1768429838551,-1500.0,0.00014368,2]
[401971270,1768429838560,-1500.0,0.00014368,2]
[401971271,1768429838570,-1500.0,0.00014368,2]
[401971272,1768429838579,-1416.13825137,0.00014368,2]
[401971273,1768429838588,-1500.0,0.00014368,2]
[401971274,1768429838597,-1500.0,0.00014368,2]
[401971275,1768429838606,-661.31872797,0.00014498,2]
[401971276,1768429838615,-166.5089198,0.0001478,2]
[401971277,1768429838625,-1000.0,0.00014795,2]
[401971278,1768429838634,-1500.0,0.00014795,2]
[401971279,1768429838643,-927.69304459,0.00014795,2]
[401971280,1768429838652,-1500.0,0.00014795,2]
[401971281,1768429838661,-1000.0,0.00014795,2]
[401971282,1768429838670,-1000.0,0.00014795,2]
[401971283,1768429838679,-595.01188659,0.000149,2]
[401971284,1768429838688,-2000.0,0.00014916,2]
[401971285,1768429838698,-2000.0,0.00014916,2]
[401971286,1768429838707,-1019.00256747,0.00015,2]
[401971287,1768429838717,-33564.60121285,0.00015,2]
[401971288,1768429838727,-1372.43724231,0.00015,3]
[401971289,1768429838738,-151.00724332,0.00015,2]
[401971290,1768429838747,-90995.51759247,0.00015,7]
[401971291,1768429838756,-588.909417,0.00015068,2]
[401971292,1768429838766,-800.0,0.00015068,2]
[401971293,1768429838775,-363.77118103,0.00015167,2]
[401971294,1768429838786,-720.0,0.00015184,2]
[401971295,1768429838796,-155.56,0.000152,2]
[401971296,1768429838806,-2000.0,0.00015342,2]
[401971297,1768429838816,-864.52541442,0.00015342,2]
[401971298,1768429838825,-2500.0,0.00015464,2]
[401971299,1768429838835,-2500.0,0.00015464,2]
[401971300,1768429838844,-587.0,0.00015717,2]
[401971301,1768429838853,-4502.43566155,0.00015855,2]
[401971302,1768429838862,-2587.94374426,0.0001589,2]
[401971303,1768429838871,-215.88592206,0.00016,2]
[401971304,1768429838880,-3000.0,0.00016012,2]
[401971305,1768429838889,-3000.0,0.00016012,2]
[401971306,1768429838906,-800.0,0.00016164,2]
[401971307,1768429838919,-200.0,0.00016438,2]
[401971308,1768429838929,-164.26686219,0.00016438,2]
[401971309,1768429839181,-200.0,0.00016473,2]
[401971310,1768429839191,-3500.0,0.0001656,2]
[401971311,1768429839201,-864.0,0.00016702,2]
[401971312,1768429839211,-95477.61285994,0.00017,2]
[401971313,1768429839220,-4000.0,0.00017108,2]
[401971314,1768429839231,-419.26170017,0.00017167,2]
[401971315,1768429839240,-823.0,0.00017235,2]
[401971316,1768429839250,-661.31872797,0.00017351,11]
[401971317,1768429839259,-400.0,0.00017534,2]
[401971318,1768429839268,-2137.48177052,0.000176,2]
[401971319,1768429839278,-4500.0,0.00017656,2]
[401971320,1768429839287,-400.30202268,0.00017842,2]
[401971321,1768429839298,-150512.98381193,0.00018,2]
[401971322,1768429839308,-42910.83449574,0.00018,5]
[401971323,1768429839318,-5000.0,0.00018204,2]
[401971324,1768429839329,-1041.66666667,0.00018263,2]
[401971325,1768429839338,-1000.0,0.00018373,2]
[401971326,1768429839348,-588.909417,0.00018493,2]
[401971327,1768429839357,-4502.43566155,0.00018537,2]